Cogmind - Beta 16.1 @@@ ROGUE MODE // 2026.02.22 @ 19:22:53 Player: Anonymous Bosch Result: Destroyed by Y-45 Defender with Heavy Assault Rifle Performance ------------- Evolutions (0) 0 Regions Visited (2) 400 Robots Destroyed (40) 200 Value Destroyed (867) 867 Prototype IDs (2) 40 Alien Tech Used (0) 0 Bonus (0) 0 TOTAL SCORE: 1507 Bonus ------- None Cogmind --------- Core Integrity 0/250 Matter 268/300 Energy 100/100 System Corruption 0% Temperature Cool (18) Movement Rolling (200) Ox8 Location -10/Mines Parts ------- > --- POWER (1) -------- (None) > --- PROPULSION (2) --- Wheel > --- UTILITY (2) ------ Huge Storage Unit Structural Scanner > --- WEAPON (2) ------- Assault Rifle Shotgun > --- INVENTORY (25) --- Ion Engine Wheel Wheel Wheel Wheel Compact Wheel VTOL Module VTOL Module VTOL Module VTOL Module Improved Heat Sink High-capacity Storage Unit Medium Matter Pod (100) Medium Matter Pod (100) Seismic Detector Hacking Suite Improved Medium Laser Grenade Launcher Grenade Launcher Grenade Launcher Grenade Launcher Datajack Mining Laser Peak State ------------ > --- POWER ------------ Ion Engine > --- PROPULSION ------- Light Treads Wheel > --- UTILITY ---------- High-capacity Storage Unit Structural Scanner > --- WEAPON ----------- Improved Medium Laser Shotgun > --- INVENTORY -------- Ion Engine Wheel VTOL Module VTOL Module VTOL Module VTOL Module Huge Storage Unit Medium Matter Pod Seismic Detector Improved Targeting Computer Hacking Suite Medium Laser Assault Rifle Light Assault Rifle Shotgun Shotgun Shotgun Grenade Launcher Datajack Mining Laser [Rating: 13] Favorites ----------- Power Ion Engine Engine Ion Engine Propulsion Wheel Treads Light Treads Wheel Wheel Utility Structural Scanner Device Structural Scanner Storage High-capacity Storage Unit Weapon Shotgun Energy Gun Improved Medium Laser Energy Cannon Advanced Beam Cannon Ballistic Gun Shotgun Special Weapon Mining Laser Build | -11 -10 -10 ------- Run | Yrd Mat Min Slots Evolved . | . . . Power . | . . . Propulsion . | . . . Utility . | . . . Weapon . | . . . Parts Attached 28 | 8 19 1 Power 5 | 1 4 . Engine 5 | 1 4 . Core . | . . . Reactor . | . . . Propulsion 6 | 2 4 . Treads 2 | 2 . . Leg . | . . . Wheel 4 | . 4 . Hover . | . . . Flight . | . . . Utility 6 | 2 4 . Device 2 | 1 1 . Storage 4 | 1 3 . Processor . | . . . Hackware . | . . . Protection . | . . . Artifact . | . . . Weapon 11 | 3 7 1 Energy Gun 3 | 2 1 . Energy Cannon 1 | . 1 . Ballistic Gun 6 | 1 4 1 Ballistic Cannon . | . . . Launcher . | . . . Special Weapon 1 | . 1 . Impact Weapon . | . . . Slashing Weapon . | . . . Piercing Weapon . | . . . Special Melee Weapon . | . . . Unidentified Prototypes 2 | . 2 . Parts Lost 8 | . 4 4 Power 1 | . . 1 Propulsion 3 | . 2 1 Utility 1 | . 1 . Weapon 3 | . 1 2 Highest Loss Streak 4 | . 2 4 To Critical Strikes . | . . . Average Backups 16 | 4 15 23 Power 1 | 1 1 1 Propulsion 4 | 2 3 7 Utility 4 | . 4 6 Weapon 6 | 1 6 7 Tool/Special . | . . . Unused Backups 28 | 1 7 20 Power 3 | . 2 1 Propulsion 9 | . . 9 Utility 7 | 1 1 5 Weapon 8 | . 4 4 Tool/Special 1 | . . 1 Average Slot Usage (%) 95 | . 96 90 Engine 12 | . 14 9 Treads 12 | . 15 . Wheel 14 | . 11 23 Device 12 | . 11 14 Storage 14 | . 14 14 Energy Gun 6 | . 7 . Ballistic Gun 21 | . 19 27 Peak Build Rating 13 | 8 13 12 Average Rating 9 | 5 10 10 On Entrance 6 | . 7 12 Avg Prop Armor Cover (%) 11 | . 11 . Naked Turns . | . . . Heaviest Build 92 | 14 92 92 Greatest Support 40 | 40 40 20 Greatest Overweight (x) 9 | 1 9 8 Average Overweight (x) 3 | . 3 5 Largest Inventory Capacity 25 | 8 25 25 Average Capacity 18 | 6 18 25 Most Carried 24 | 8 23 24 Average Carried 16 | 5 15 23 Final Capacity 25 | 8 25 25 Final Carried 23 | 8 23 23 Class Distribution -------------------- 100% | Mutant Dominant Class ---------------- Mutant | -10/Materials Mutant | -10/Mines Resources | -11 -10 -10 ----------- Run | Yrd Mat Min Matter Collected 988 | 277 672 39 Remotely . | . . . Salvage Created 1392 | 159 1162 71 Parts 73 | 14 58 1 Haulers Intercepted 2 | . 2 . Recyclers Shooed 4 | . 4 . Parts Field Recycled . | . . . Retrieved Matter . | . . . Parts Self-Destructed . | . . . Prevented . | . . . Parts Restored . | . . . Kills | -11 -10 -10 ------- Run | Yrd Mat Min Combat Hostiles Destroyed 23 | . 21 2 Guns 23 | . 21 2 Classes Destroyed 11 | 2 7 2 Worker 2 | . 2 . Builder 1 | . 1 . Tunneler 4 | 3 1 . Hauler 2 | . 2 . Recycler 6 | 1 4 1 Operator 1 | . 1 . Watcher 2 | . 2 . Swarmer 3 | . 3 . Grunt 18 | . 18 . Demolisher 1 | . . 1 Assembled 1 | . . 1 Best Kill Streak 6 | 3 6 1 Combat Bots Only 3 | . 3 1 Max Kills in Single Turn 2 | 1 2 1 Gunslinging . | . . . Exploded . | . . . Melee . | . . . Uniques/NPCs Destroyed . | . . . Combat | -11 -10 -10 -------- Run | Yrd Mat Min Hostile Shots Fired 103 | . 88 15 Missed 24 | . 23 1 Hits 79 | . 65 14 Melee 2 | . . 2 Projectile 77 | . 65 12 AOE 9 | . . 9 Damage Taken 1371 | . 890 481 Core 256 | . 155 101 Absorbed by Shields . | . . . Regen/Repaired (Parts) 114 | . 114 . Core Remaining (%) 100 | 100 . . Volleys Fired 116 | 7 100 9 Largest 2 | 2 2 2 Hottest 100 | 70 100 46 Shots Fired 224 | 14 192 18 Gun 216 | 14 184 18 Cannon . | . . . Launcher . | . . . Special 8 | . 8 . Kinetic 150 | 7 125 18 Thermal 61 | 7 54 . Explosive . | . . . Electromagnetic 13 | . 13 . Robot Hit Streak 17 | 6 17 8 Robot Miss Streak 5 | 1 5 2 Penetration Max . | . . . Secondary Targets 2 | . 2 . Max Gunslinging Chain 1 | . 1 . Shots Hit Robots 155 | 10 131 14 Core Hits 79 | 6 65 8 Critical Kills . | . . . Critical Parts Destroyed . | . . . Critical Strikes 4 | . 4 . Burn 4 | . 4 . Melee Attacks . | . . . Impact . | . . . Slashing . | . . . Piercing . | . . . Sneak Attacks . | . . . Combat Hostiles . | . . . Follow-up Attacks . | . . . Damage Inflicted 2057 | 112 1761 184 Guns 1981 | 112 1685 184 Cannons . | . . . Explosions 59 | . 59 . Melee . | . . . Ramming 17 | . 17 . Kinetic 1393 | 37 1172 184 Thermal 511 | 75 436 . Explosive . | . . . Electromagnetic 136 | . 136 . Impact . | . . . Slashing . | . . . Piercing . | . . . Highest Corruption . | . . . Average Corruption . | . . . Corruption Purged . | . . . Corruption Blocked . | . . . Overload Shots . | . . . Overflow Damage . | . . . Projectiles . | . . . Explosions . | . . . Melee . | . . . Knockbacks . | . . . Impact . | . . . Kinetic . | . . . Secondary . | . . . Self-Inflicted Damage 8 | . 8 . Shots . | . . . Rammed 2 | . 2 . Targets Rammed 2 | . 2 . Kicked . | . . . Crushed . | . . . Highest Temperature 174 | 60 174 . Average Temperature 41 | 25 43 . Received Heat Transfer 405 | . 387 18 Siege Activations . | . . . Martial Activations . | . . . Shielding Activations . | . . . Robots Disrupted . | . . . Combat Hostiles . | . . . Robots Corrupted 1 | . 1 . Combat Hostiles . | . . . Parts Fried . | . . . Impact Corruptions . | . . . Robots Melted . | . . . Combat Hostiles . | . . . Parts Melted 1 | . 1 . Heat Transferred 1641 | 222 1419 . Parts Sabotaged . | . . . Parts Stolen . | . . . Parts Stripped . | . . . Power Chain Reactions 1 | . 1 . Alert | -11 -10 -10 ------- Run | Yrd Mat Min Maximum Alert Level . | . . . Low Security (%) 100 | 100 100 100 Level 1 . | . . . Level 2 . | . . . Level 3 . | . . . Level 4 . | . . . Level 5 . | . . . High Security . | . . . Max Security . | . . . Peak Influence 155 | 10 155 34 Initial 34 | . . 34 Average 34 | . 46 4 Influence Increases 659 | 20 614 25 Destroy 0b10 Robot/C 440 | . 420 20 Destroy 0b10 Robot/NC 90 | 20 65 5 Destroy Leader 88 | . 88 . Successful Hack 17 | . 17 . Disable Machine 15 | . 15 . Destroy Structure 9 | . 9 . Influence Decreases 659 | 20 525 114 Entered New Map 55 | . . 55 Time Decay 477 | 20 398 59 Lost Part 40 | . 40 . Purge Threat 87 | . 87 . Squads Dispatched 4 | . 4 . Investigation 2 | . 2 . Extermination . | . . . Reinforcement 2 | . 2 . Assault . | . . . Garrison . | . . . Intercept . | . . . Searches Triggered . | . . . Construction Impeded . | . . . Haulers Reinforced . | . . . Active Scanning Responses . | . . . Cargo Convoy Interrupts . | . . . Stealth | -11 -10 -10 --------- Run | Yrd Mat Min Distress Signals 3 | . 3 . Communications Jammed . | . . . Distress Signals . | . . . Times Spotted 45 | . 40 5 Peak Tracking Total 4 | . 4 2 Tactical Retreats . | . . . Traps | -11 -10 -10 ------- Run | Yrd Mat Min Traps Triggered 1 | . 1 . Indirectly . | . . . Trap Hack Attempts . | . . . Triggered . | . . . Disarmed . | . . . Reprogrammed . | . . . Reused . | . . . Traps Extracted . | . . . Installed . | . . . Triggered . | . . . Machines | -11 -10 -10 ---------- Run | Yrd Mat Min Machines Disabled 1 | . 1 . Max in Single Turn 1 | . 1 . Machines Repaired . | . . . Machines Dismantled . | . . . Machines Sabotaged . | . . . Overloaded Fab Kills . | . . . Hacking | -11 -10 -10 --------- Run | Yrd Mat Min Machines Accessed 7 | . 7 . Terminals 4 | . 4 . Fabricators . | . . . Repair Stations 1 | . 1 . Recycling Units 2 | . 2 . Scanalyzers . | . . . Garrison Access . | . . . Total Hacks 21 | . 21 . Successful 12 | . 12 . Failed 9 | . 9 . Catastrophic 2 | . 2 . Database Lockouts . | . . . Manual 8 | . 8 . Terminals 14 | . 14 . Fabricators . | . . . Repair Stations 3 | . 3 . Recycling Units 4 | . 4 . Scanalyzers . | . . . Garrison Access . | . . . Terminal Hacks 8 | . 8 . Robot Analysis 4 | . 4 . Alert Level 1 | . 1 . Unreport Threat 1 | . 1 . Locate Traps 1 | . 1 . Registered Components 1 | . 1 . Fabricator Hacks . | . . . Repair Station Hacks 2 | . 2 . Scan Component 1 | . 1 . Repair 1 | . 1 . Recycling Unit Hacks 2 | . 2 . Retrieve Components 2 | . 2 . Scanalyzer . | . . . Garrison Access Hacks . | . . . Unauthorized Hacks . | . . . Terminals . | . . . Fabricators . | . . . Repair Stations . | . . . Recycling Units . | . . . Scanalyzers . | . . . Garrison Access . | . . . Data Cores Recovered . | . . . Used . | . . . Hacking Detections 6 | . 6 . Full Trace Events 2 | . 2 . Feedback Events . | . . . Feedback Blocked . | . . . Robot Schematics Acquired . | . . . Robots Built . | . . . Authchips . | . . . Time . | . . . Total Robot Build Rating . | . . . Part Schematics Acquired . | . . . Parts Built . | . . . Authchips . | . . . Time . | . . . Total Part Build Rating . | . . . Part Studies Acquired . | . . . Parts Repaired 1 | . 1 . Time 26 | . 26 . Parts Recycled . | . . . Recycled Matter . | . . . Retrieved Matter . | . . . Retrieved Components 17 | . 17 . Parts Scanalyzed . | . . . Part Schematics Acquired . | . . . Parts Damaged . | . . . Bothacking | -11 -10 -10 ------------ Run | Yrd Mat Min Used RIF Installer . | . . . Robots Hacked . | . . . Non-combat . | . . . Combat . | . . . Robot Hacks Applied . | . . . Relay Couplers Released . | . . . Fabnet Peak Effective % . | . . . Robots Rewired . | . . . Allies Hacked . | . . . Hacks Repelled . | . . . Allies | -11 -10 -10 -------- Run | Yrd Mat Min Total Allies . | . . . Largest Group . | . . . Highest-Rated Group . | . . . Highest-Rated Ally . | . . . Total Orders . | . . . Ally Attacks . | . . . Total Damage . | . . . Kills . | . . . Allies Corrupted . | . . . Allies Melted . | . . . Intel | -11 -10 -10 ------- Run | Yrd Mat Min Active Infowar (turns) 1972 | 103 1381 488 Structural 1530 | . 1042 488 Seismic 442 | 103 339 . Robot Analysis Total 4 | . 4 . Derelict Logs Recovered . | . . . Drone Launches . | . . . Drone Recoveries . | . . . Exploration | -11 -10 -10 ------------- Run | Yrd Mat Min Turns Passed 2333 | 162 1683 488 Spaces Moved 1192 | 78 834 280 Core 7 | 7 . . Treads 200 | 71 129 . Legs . | . . . Wheels 985 | . 705 280 Hover . | . . . Flight . | . . . Fastest Speed 50 | 50 110 140 Average Speed 149 | 152 146 155 Slowest Speed 240 | 160 240 200 Overloaded Moves . | . . . Propulsion Burnouts . | . . . Robots Hopped . | . . . Potential Cave-ins . | . . . Cave-ins Triggered . | . . . Exploration Rate (%) 57 | 5 96 72 Regions Visited 2 Branch Regions 1 Pre-discovered Areas . | . . . Known Exits Taken . | . . . Unknown Exits Taken 2 | 1 1 . Scrap Searched . | . . . Spaces Dug 4 | . 4 . Terrain Destroyed 10 | . 10 . Melee . | . . . Projectile 7 | . 7 . AOE 3 | . 3 . Terrain Rammed . | . . . Walls Destroyed . | . . . Machines Disabled . | . . . Actions | -11 -10 -10 --------- Run | Yrd Mat Min Total 1527 | 108 1104 315 Wait 110 | . 88 22 Move 1190 | 77 833 280 Hop . | . . . Pick Up 54 | 15 37 2 Fast Attach 1 | 1 . . Attach 17 | 6 9 2 Detach . | . . . Swap 17 | 1 16 . Drop 20 | 1 19 . Fire 116 | 7 100 9 Melee . | . . . Ram 2 | . 2 . Kick . | . . . Crush . | . . . Escape Stasis . | . . . Rewire . | . . . Trap . | . . . Miscellaneous . | . . . Route ------- -11/Scrapyard -10/Materials (discovered 4 exits: [*Mat x3] / [*Min]) -10/Mines History --------- Turn | Location | Event 95 | -11/Scrapyard | Discovered new exit (range 13) 163 | -11/Scrapyard | Entered Materials 312 | -10/Materials | Build established: Mutant 657 | -10/Materials | Discovered new exit (range 6) 853 | -10/Materials | Repaired Lgt. Treads 955 | -10/Materials | Discovered new exit (range 16) 1320 | -10/Materials | Discovered new exit (range 11) 1420 | -10/Materials | Discovered new exit (range 12) 1671 | -10/Materials | Core integrity fell below 50% 1846 | -10/Materials | Entered Mines 2088 | -10/Mines | Assembled infested the area 2174 | -10/Mines | Core integrity fell below 20% 2202 | -10/Mines | Lost 4 parts (1p1n2w) 2334 | -10/Mines | Destroyed by Y-45 Defender with Heavy Assault Rifle Last Messages --------------- 02187_ Acquired Wheel. 02188_ The unstable cave ceiling collapses. 02188_ U-05 Engineer lays Concrete. 02190_ The unstable cave ceiling collapses. 02191_ U-05 Engineer builds a Wall. 02192_ Acquired 4 matter. 02195_ The unstable cave ceiling collapses. 02195_ U-05 Engineer lays Concrete. 02197_ The unstable cave ceiling collapses. 02197_ U-05 Engineer builds a Wall. 02199_ The unstable cave ceiling collapses. 02203_ U-05 Engineer builds a Wall. 02206_ The unstable cave ceiling collapses. 02207_ U-05 Engineer builds a Wall. 02208_ The unstable cave ceiling collapses. 02211_ U-05 Engineer lays Concrete. 02212_ U-05 Engineer builds a Wall. 02254_ as-30606 destroyed. 02257_ Acquired 19 matter. 02331_ K-01 Serf collects debris. Map ----- +----------------------------------------------------+ | ?????????????????## ## | | ?????????????????### #### | | ?????????????????########### | | ??????????????????########## | | ????????????????????????### | | ????????????????????????## | | ???????????????????????### | | ????????????############## | | ????????????############# ## | | ????????????## ### | | ????????????## % #### | | ????????????## ###############? | | ????????????## ##############?? | | ????????????## ###???????????? | | ???????????### ##???????????? | | ?????????##### ##???######??? | | ?????????#### ###??########?? | | ?????????## ####?#### ###?? | | ????######## ########## ##?? | | ????################### ##?? | | ????##"YY"###### #### ###?? | | ????#[! ]!### ## ##### | | ?#### ! !!## #### | | ?##### ### | | ?## ##//##### ## | | ?## @ ######## | | ?## ######## ## | | ?## #### ###### #### | | ?## ## #### ###### ## | | ?## ## ######## ## | | ?## #####??## ## | | ?### ##### ####????## ## | | ?############ ####?????## | | ??#######?### ###??????##### | | ???????????### ###???????##### | | ???????????##### ###???????????? | | ????????????#### ##????????????? | | ??????????????## ##????????????? | | ??????????????## #????????????? | | ??????????????### ##???????????? | | ??????????????### ##???????????? | | ????????????????? ##???????????? | | ????????????????? ##???????????? | | ?????????????????=##???????????? | | ?????????????????%##???????????? | | ?????????????????!##???????????? | | ?????????????????*?????????????? | | ???????????????????????????????? | | ???????????????????????????????? | | ???????????????????????????????? | +----------------------------------------------------+ Best States ------------- Heat Dissipation 25 Energy Generation 10 Energy Capacity 250 Matter Stores 300 Matter Capacity 300 Sight Range 16 Terrain Scan Density 10 Evasion (%) 40 Recoil Reduction 2 Item Schematics ----------------- None Robot Schematics ------------------ None Fabricated ------------ Nothing Repaired ---------- Lgt. Treads | 18% | -10/Materials Studied --------- None Alien Tech Used ----------------- None Achievements -------------- None Challenges ------------ None Game ------ Seed GreatCompactSaw Manual? 0 Play Time 00:19:36 Cumulative 88.3 hours Start 2026.02.22 @ 19:05:12 End 2026.02.22 @ 19:22:53 Sessions 1 Manual Loads 0 Difficulty Rogue Special Mode None Game No. 39 Rogue 39 Adventurer 0 Explorer 0 Win Type - Total 2 Types 2/0/0/0/0/0/0/0/0/0 Lore% 52 Gallery% 45 Achievement% 42 Wizard Run 0 Options --------- Layout 1 ASCII 0 Keyboard 0 Movement Numpad Keybinds 0 Fullscreen 2 Font 24/Smallcaps Map View 50x35 Zoom Use 0% Tactical HUD 1 Map Filters NONE Filters NONE Steam 1 RUN: 9db77765-14c6-496a-8968-b6b2717c04c8